bitfinex/quotes_SOLUSD_20240913
["timestamp","ask_amount","ask_price","bid_price","bid_amount"]
[1726255021667,6.2903,138.22,138.16,7.56653183]
[1726255021975,6.2903,138.22,138.16,21.66198427]
[1726255022782,6.2903,138.22,138.17,23.776884]
[1726255023690,6.2903,138.22,138.17,24.8390115]
[1726255024268,6.2903,138.22,138.18,1.07216964]
[1726255024486,15.3216,138.24,138.17,37.87233644]
[1726255024695,15.3216,138.24,138.2,37.87233644]
[1726255024871,15.3216,138.24,138.21,1.16858778]
[1726255025187,6.5634221,138.26,138.2,37.87233644]
[1726255025385,6.5634221,138.26,138.22,23.776884]
[1726255026393,6.5634221,138.26,138.2,14.09545244]
[1726255026585,6.5634221,138.26,138.21,23.776884]
[1726255030673,6.5634221,138.26,138.2,14.09545244]
[1726255030674,6.5634221,138.26,138.2,23.776884]
[1726255031088,6.5634221,138.26,138.19,14.09545244]
[1726255031480,6.5634221,138.26,138.18,21.66146997]
[1726255032403,6.5634221,138.26,138.2,23.776884]
[1726255032571,6.5634221,138.26,138.21,1.44691833]
[1726255033801,6.5634221,138.26,138.19,23.776884]
[1726255034797,6.5634221,138.26,138.19,37.87233644]
[1726255036799,6.5634221,138.26,138.2,14.09545244]
[1726255037010,6.5634221,138.26,138.21,23.776884]
[1726255037505,0.2561221,138.26,138.22,14.09545244]
[1726255037797,0.2561221,138.26,138.23,23.776884]
[1726255038183,0.2561221,138.26,138.23,37.87233644]
[1726255038388,0.2561221,138.26,138.23,23.776884]
[1726255039283,0.2561221,138.26,138.22,23.776884]
[1726255040905,0.2561221,138.26,138.25,23.776884]
[1726255042203,0.2561221,138.26,138.23,14.09545244]
[1726255042378,0.2561221,138.26,138.24,23.776884]
[1726255042580,0.2561221,138.26,138.23,14.09545244]
[1726255043795,0.2561221,138.26,138.24,23.776884]
[1726255045289,0.2561221,138.26,138.24,25.22258355]
[1726255046012,0.2561221,138.26,138.25,25.22245161]
[1726255046308,0.2561221,138.26,138.25,37.87233644]
[1726255046509,0.2561221,138.26,138.25,39.31816916]
[1726255049014,0.2561221,138.26,138.25,37.89163451]
[1726255049188,0.2561221,138.26,138.25,23.776884]
[1726255049387,0.2561221,138.26,138.24,23.776884]
[1726255054535,0.2305221,138.26,138.25,36.44580179]
[1726255055613,0.2305221,138.26,138.25,23.776884]
[1726255056499,0.2305221,138.26,138.24,23.776884]
[1726255056819,0.2305221,138.26,138.21,20.12549]
[1726255057023,0.2305221,138.26,138.22,12.66891779]
[1726255058217,0.2305221,138.26,138.23,23.776884]
[1726255059204,0.2305221,138.26,138.24,23.776884]
[1726255059933,0.2305221,138.26,138.24,36.44580179]
[1726255061018,0.2305221,138.26,138.24,23.776884]
[1726255061507,0.2305221,138.26,138.24,36.44580179]
[1726255061830,0.2305221,138.26,138.25,12.66891779]
[1726255062018,0.2305221,138.26,138.25,36.44580179]
[1726255063328,0.2305221,138.26,138.25,56.69678179]
[1726255063561,0.2305221,138.26,138.25,56.82227179]
[1726255066317,0.2561221,138.3,138.26,44.027864]
[1726255066531,0.2561221,138.3,138.29,12.66891779]
[1726255066845,0.2561221,138.3,138.29,36.44580179]
[1726255067310,0.2561221,138.3,138.29,23.776884]
[1726255067717,0.2561221,138.3,138.29,36.44580179]
[1726255072843,0.2561221,138.3,138.29,23.776884]
[1726255080149,0.2561221,138.3,138.27,12.66891779]
[1726255080362,0.2561221,138.3,138.26,20.0]
[1726255080928,0.2561221,138.3,138.26,32.66891779]
[1726255081540,0.2561221,138.3,138.27,1.44533145]
[1726255082554,0.2561221,138.3,138.27,14.11424924]
[1726255083131,0.2561221,138.3,138.27,12.66891779]
[1726255083331,0.2561221,138.3,138.27,23.776884]
[1726255088538,0.2561221,138.3,138.27,36.44580179]
[1726255090760,0.2561221,138.3,138.28,1.4461252]
[1726255091357,0.2561221,138.3,138.29,23.776884]
[1726255091546,0.2561221,138.3,138.28,12.66891779]
[1726255091731,0.2561221,138.3,138.29,23.776884]
[1726255095363,0.2561221,138.3,138.29,36.44580179]
[1726255095560,0.2561221,138.3,138.28,23.776884]
[1726255098546,0.2561221,138.3,138.27,23.776884]
[1726255098747,0.2561221,138.3,138.26,23.776884]
[1726255100145,0.2561221,138.3,138.26,36.44580179]
[1726255101043,0.2561221,138.3,138.27,12.66891779]
[1726255101241,0.2561221,138.3,138.28,23.776884]
[1726255101754,0.2561221,138.3,138.26,12.66891779]
[1726255102271,0.2561221,138.3,138.28,12.66891779]
[1726255102478,0.2561221,138.3,138.29,12.66891779]
[1726255103144,0.2561221,138.3,138.29,36.44580179]
[1726255107166,0.2561221,138.3,138.29,23.776884]
[1726255107967,0.2561221,138.3,138.29,36.44580179]
[1726255109281,0.2561221,138.3,138.29,52.14460179]
[1726255109591,0.2561221,138.34,138.31,0.25098]
[1726255109751,0.2561221,138.34,138.33,12.66891779]
[1726255110053,0.2561221,138.34,138.33,36.44580179]
[1726255111981,0.2561221,138.34,138.31,23.776884]
[1726255112278,0.2561221,138.34,138.31,36.44580179]
[1726255112466,0.2561221,138.34,138.32,12.66891779]
[1726255113170,0.2561221,138.34,138.33,12.66891779]
[1726255114185,0.2561221,138.34,138.33,36.44580179]
[1726255116382,0.2561221,138.34,138.33,23.776884]
[1726255118153,0.2561221,138.34,138.32,12.66891779]
[1726255119480,0.2561221,138.34,138.33,37.89145339]
[1726255120473,0.2561221,138.34,138.33,36.44580179]
[1726255121151,0.2561221,138.34,138.33,36.43158577]
[1726255121358,0.2561221,138.34,138.33,37.87699655]
[1726255121781,0.2561221,138.34,138.33,36.43158577]
[1726255124754,0.2561221,138.34,138.33,23.776884]
[1726255125181,0.2561221,138.34,138.32,12.65470177]
[1726255125477,0.2561221,138.34,138.3,32.65470177]
[1726255125650,0.2561221,138.34,138.31,12.65470177]
[1726255126276,0.2561221,138.34,138.32,23.776884]
[1726255126658,0.2561221,138.34,138.31,12.65470177]
[1726255126659,0.2561221,138.34,138.29,20.21445487]
[1726255126856,0.2561221,138.34,138.29,12.65470177]
[1726255128284,0.2561221,138.34,138.3,23.776884]
[1726255129075,0.2561221,138.34,138.3,12.65470177]
[1726255129688,0.2561221,138.34,138.29,23.776884]
[1726255129889,0.2561221,138.34,138.28,7.56144343]
[1726255130062,0.12549,138.33,138.27,12.65470177]
[1726255130383,0.2561221,138.34,138.28,12.65470177]
[1726255131176,0.2561221,138.34,138.27,12.65470177]
[1726255131772,0.2561221,138.34,138.28,23.776884]
[1726255134982,22.2874,138.32,138.25,7.56277576]
[1726255135186,22.2874,138.32,138.23,6.6062]
[1726255135386,22.2874,138.32,138.24,12.65470177]
[1726255136279,0.12549,138.31,138.24,12.65470177]
[1726255136479,0.12549,138.31,138.25,12.65470177]
[1726255137986,22.2874,138.32,138.28,23.776884]
[1726255138481,22.2874,138.32,138.27,12.65470177]
[1726255138794,15.9766,138.32,138.27,12.65470177]
[1726255139262,15.9766,138.32,138.24,36.43158577]
[1726255139666,15.9766,138.32,138.24,12.65470177]
[1726255139884,0.12549,138.31,138.24,12.65470177]
[1726255140389,0.12549,138.31,138.25,12.65470177]
[1726255141291,0.12549,138.31,138.24,36.44901548]
[1726255142789,0.12549,138.31,138.24,23.776884]
[1726255142790,6.4824,138.3,138.24,23.776884]
[1726255143362,6.4824,138.3,138.23,23.776884]
[1726255143588,6.4824,138.3,138.23,36.44901548]
[1726255143782,0.12549,138.29,138.23,36.44901548]
[1726255148091,0.12549,138.29,138.23,23.776884]
[1726255150184,0.25098,138.29,138.22,20.23723704]
[1726255150991,0.25098,138.29,138.23,12.67213148]
[1726255152191,0.25098,138.29,138.23,23.776884]
[1726255152391,0.25098,138.29,138.22,23.776884]
[1726255152594,0.25098,138.29,138.22,12.67213148]
[1726255152777,0.25098,138.29,138.23,23.776884]
[1726255155913,0.25098,138.27,138.22,7.56537518]
[1726255156082,0.25098,138.27,138.2,0.2561221]
[1726255157177,0.25098,138.27,138.2,12.92825358]
[1726255157378,0.25098,138.27,138.21,14.11749077]
[1726255157681,0.25098,138.27,138.2,0.2561221]
[1726255158401,0.25098,138.25,138.2,0.2561221]
[1726255158616,0.12549,138.23,138.2,0.2561221]
[1726255158773,0.25098,138.23,138.2,0.2561221]
[1726255160700,15.54549,138.24,138.2,0.2561221]
[1726255160882,0.12549,138.23,138.2,0.2561221]
[1726255161483,15.54549,138.24,138.2,0.2561221]
[1726255161484,15.42,138.24,138.2,0.2561221]
[1726255163194,0.12549,138.23,138.2,0.2561221]
[1726255163387,0.37647,138.23,138.2,0.2561221]
[1726255163788,0.25098,138.23,138.2,0.2561221]
[1726255168502,15.42,138.24,138.2,12.92825358]
[1726255169008,15.42,138.24,138.2,0.2561221]
[1726255169494,15.42,138.24,138.2,12.92825358]
[1726255170799,6.5874,138.26,138.2,12.92825358]
[1726255170800,15.0871,138.28,138.22,12.67213148]
[1726255170998,15.0871,138.28,138.23,12.67213148]
[1726255171203,15.0871,138.28,138.24,12.67213148]
[1726255171395,15.0871,138.28,138.24,14.1187393]
[1726255171811,16.5738,138.31,138.25,12.67213148]
[1726255171996,16.5738,138.31,138.26,14.11854387]
[1726255172192,16.5738,138.31,138.27,14.11841818]
[1726255172387,16.5738,138.31,138.27,12.67213148]
[1726255174210,16.5738,138.31,138.24,23.776884]
[1726255174512,16.5738,138.31,138.25,12.67213148]
[1726255176106,16.5738,138.31,138.25,13.32581398]
[1726255176422,16.5738,138.31,138.24,36.44901548]
[1726255176609,0.25098,138.3,138.23,23.776884]
[1726255176910,16.5738,138.31,138.24,12.67213148]
[1726255177120,16.5738,138.31,138.26,12.67213148]
[1726255178420,16.5738,138.31,138.26,23.776884]
[1726255178622,16.5738,138.31,138.25,12.67213148]
[1726255178810,16.5738,138.31,138.24,12.67213148]
[1726255178999,16.5738,138.31,138.25,23.776884]
[1726255182221,16.5738,138.31,138.25,36.44901548]
[1726255183019,16.5738,138.31,138.23,12.67213148]
[1726255183319,0.12549,138.3,138.24,23.776884]
[1726255184319,16.5738,138.31,138.24,36.44901548]
[1726255184495,16.5738,138.31,138.27,12.67213148]
[1726255184695,16.5738,138.31,138.28,12.67213148]
[1726255185991,16.5738,138.31,138.27,12.67213148]
[1726255193222,16.5738,138.31,138.23,23.776884]
[1726255193397,16.5738,138.31,138.23,32.67213148]
[1726255193907,0.12549,138.3,138.23,32.67213148]
[1726255195220,0.12549,138.3,138.24,23.776884]
[1726255196707,0.37647,138.3,138.22,7.55176996]
[1726255197112,0.37647,138.3,138.22,20.22390144]
[1726255199922,6.5433,138.29,138.22,20.22390144]
[1726255200513,6.5433,138.29,138.22,7.55176996]
[1726255200903,0.25098,138.28,138.22,7.55176996]
[1726255201104,0.25098,138.28,138.22,23.776884]
[1726255202830,0.25098,138.28,138.22,36.44901548]
[1726255206835,15.8861,138.27,138.2,36.70513758]
[1726255208336,15.8861,138.27,138.21,12.67213148]
[1726255210227,15.8861,138.27,138.2,0.2561221]
[1726255210228,6.5433,138.29,138.25,12.67213148]
[1726255210437,6.5433,138.29,138.24,12.67213148]
[1726255211445,16.2159,138.3,138.26,12.67213148]
[1726255211735,16.2159,138.3,138.25,12.67213148]
[1726255212032,16.2159,138.3,138.26,12.67213148]
[1726255212416,16.2159,138.3,138.22,0.25098]
[1726255212417,16.2159,138.3,138.27,12.67213148]
[1726255212631,6.3733,138.32,138.29,12.67213148]
[1726255212814,6.3733,138.32,138.28,12.67213148]
[1726255213930,6.3733,138.32,138.27,12.67213148]
[1726255215531,0.2561221,138.34,138.31,12.67213148]
[1726255215831,0.2561221,138.34,138.28,1.57115604]
[1726255215832,0.2561221,138.34,138.32,12.67213148]
[1726255216139,0.2561221,138.34,138.33,12.67213148]
[1726255217233,0.2561221,138.34,138.32,12.67213148]
[1726255218326,0.2561221,138.34,138.33,12.67213148]
[1726255218633,0.2561221,138.34,138.32,12.67213148]
[1726255220134,0.2561221,138.34,138.3,12.67213148]
[1726255220818,0.2561221,138.34,138.31,12.67213148]
[1726255221341,0.2561221,138.34,138.33,12.67213148]
[1726255223344,0.2561221,138.34,138.32,36.44901548]
[1726255223647,0.2561221,138.34,138.32,23.776884]
[1726255224045,0.2561221,138.34,138.32,36.44901548]
[1726255224427,0.2561221,138.34,138.33,12.67213148]
[1726255224611,0.2561221,138.34,138.32,23.776884]
[1726255226134,0.2561221,138.34,138.33,36.44901548]
[1726255226524,0.2561221,138.34,138.33,56.44901548]
[1726255228244,0.2561221,138.34,138.33,57.53790264]
[1726255228440,0.2561221,138.34,138.33,57.66339264]
[1726255230945,0.2561221,138.34,138.33,56.57450548]
[1726255231445,0.2561221,138.34,138.33,43.776884]
[1726255231661,0.2561221,138.34,138.33,56.44901548]
[1726255232325,0.2561221,138.34,138.33,56.57450548]
[1726255233736,0.2561221,138.38,138.34,44.027864]
[1726255234035,0.2561221,138.38,138.37,12.67213148]
[1726255234231,0.2561221,138.38,138.37,36.44901548]
[1726255239431,0.2561221,138.38,138.37,56.44901548]
[1726255241563,0.2561221,138.38,138.37,56.82548548]
[1726255244356,0.2561221,138.38,138.37,44.153354]
[1726255244555,0.2561221,138.38,138.37,56.82548548]
[1726255248861,0.2561221,138.38,138.37,32.67213148]
[1726255249864,0.2561221,138.38,138.37,32.79762148]
[1726255250166,0.2561221,138.38,138.37,56.57450548]
[1726255254156,0.2561221,138.38,138.37,56.82548548]
[1726255258354,0.2561221,138.38,138.37,56.57450548]
[1726255260452,0.2561221,138.38,138.37,56.82548548]
[1726255260853,0.2561221,138.38,138.37,43.776884]
[1726255261068,0.2561221,138.38,138.37,56.44901548]
[1726255263470,0.2561221,138.38,138.37,56.57450548]
[1726255265579,0.2561221,138.38,138.37,44.153354]
[1726255265766,0.2561221,138.42,138.37,44.153354]
[1726255265767,0.2561221,138.42,138.38,44.027864]
[1726255265960,0.2561221,138.42,138.41,12.67213148]
[1726255266156,0.2561221,138.42,138.41,36.44901548]
[1726255266564,0.2561221,138.42,138.41,56.44901548]
[1726255269382,0.2561221,138.42,138.41,56.82548548]
[1726255270890,0.2561221,138.42,138.41,43.776884]
[1726255271197,0.2561221,138.42,138.41,56.44901548]
[1726255271857,0.2561221,138.42,138.36,8.25649778]
[1726255272378,0.2561221,138.42,138.39,12.67213148]
[1726255272957,0.2561221,138.42,138.4,12.67213148]
[1726255273285,0.2561221,138.42,138.4,14.00903212]
[1726255273485,0.2561221,138.42,138.41,12.67213148]
[1726255273787,0.2561221,138.42,138.41,36.44901548]
[1726255275575,0.2561221,138.42,138.37,20.0]
[1726255275778,0.2561221,138.42,138.38,12.67213148]
[1726255276280,0.2561221,138.42,138.39,12.67213148]
[1726255276863,0.2561221,138.42,138.38,23.776884]
[1726255278194,0.2561221,138.42,138.36,12.67213148]
[1726255278700,0.2561221,138.42,138.35,20.21110372]
[1726255278901,0.2561221,138.42,138.35,7.53897224]
[1726255279094,22.3767,138.4,138.33,12.67213148]
[1726255279273,22.3767,138.4,138.33,7.54082678]
[1726255280101,0.12549,138.39,138.33,7.54082678]
[1726255280397,0.12549,138.39,138.3,20.21432347]
[1726255280705,0.12549,138.39,138.31,12.67213148]
[1726255281483,0.12549,138.39,138.32,12.67213148]
[1726255281683,0.12549,138.39,138.33,23.776884]
[1726255281891,0.12549,138.39,138.33,36.44901548]
[1726255282087,22.3767,138.4,138.33,36.44901548]
[1726255282289,22.3767,138.4,138.34,12.67213148]
[1726255283401,22.3767,138.4,138.35,23.776884]
[1726255283603,22.3767,138.4,138.35,12.67213148]
[1726255283895,22.3767,138.4,138.36,23.776884]
[1726255284706,22.3767,138.4,138.31,20.0]
[1726255285199,22.3767,138.4,138.32,12.67213148]
[1726255285980,0.25098,138.39,138.31,20.0]
[1726255286181,0.25098,138.39,138.3,7.5423529]
[1726255286387,0.25098,138.39,138.28,20.03899045]
[1726255286801,0.25098,138.39,138.29,20.0]
[1726255287403,0.25098,138.37,138.29,20.0]
[1726255288683,0.25098,138.37,138.3,23.776884]
[1726255289087,0.12549,138.37,138.3,23.776884]
[1726255289291,15.882,138.38,138.3,23.776884]
[1726255291400,15.882,138.38,138.32,23.776884]
[1726255291709,15.882,138.38,138.3,23.776884]
[1726255292110,15.882,138.38,138.31,20.0]
[1726255292299,15.882,138.38,138.33,23.776884]
[1726255296115,15.882,138.38,138.29,20.12549]
[1726255296419,15.882,138.38,138.29,20.0]
[1726255296610,0.25098,138.37,138.28,7.7987897]
[1726255296793,0.25098,138.37,138.28,0.2561221]
[1726255296994,0.25098,138.37,138.28,28.90556399]
[1726255297407,0.88321043,138.4,138.28,28.90556399]
[1726255297720,0.37647,138.39,138.28,28.90556399]
[1726255298012,0.37647,138.39,138.29,43.776884]
[1726255298394,0.37647,138.39,138.31,23.776884]
[1726255299205,22.98745148,138.44,138.32,1.35716404]
[1726255299411,23.902374,138.43,138.32,5.07124852]
[1726255300529,23.776884,138.41,138.32,6.42928574]
[1726255301396,0.37647,138.4,138.32,6.42928574]
[1726255301603,0.37647,138.4,138.32,5.07124852]
[1726255302117,0.37647,138.4,138.33,1.36113015]
[1726255304008,0.37647,138.4,138.32,5.07124852]
[1726255304814,24.153354,138.4,138.32,5.07124852]
[1726255305312,0.25098,138.38,138.32,5.07124852]
[1726255305710,0.25098,138.39,138.32,5.07124852]
[1726255306020,0.12549,138.38,138.32,5.07124852]
[1726255311496,0.25098,138.39,138.32,5.07124852]
[1726255311699,0.25098,138.4,138.33,1.26634524]
[1726255311914,0.12549,138.39,138.33,1.26634524]
[1726255313503,23.207,138.42,138.34,5.07124852]
[1726255313504,15.9825,138.42,138.34,5.07124852]
[1726255314419,15.9825,138.42,138.35,14.0709193]
[1726255314620,15.9825,138.42,138.36,1.40816446]
[1726255314833,6.201,138.44,138.36,1.40816446]
[1726255315003,6.201,138.44,138.37,5.07124852]
[1726255315729,15.1283,138.45,138.37,5.07124852]
[1726255315900,18.2089786,138.45,138.37,5.07124852]
[1726255316102,15.1283,138.45,138.37,5.07124852]
[1726255316303,15.1283,138.45,138.38,1.44517038]
[1726255316505,0.2561221,138.46,138.38,1.44517038]
[1726255316702,3.22242206,138.46,138.38,1.44517038]
[1726255316909,3.22242206,138.46,138.37,23.81527306]
[1726255317108,3.22242206,138.46,138.37,11.15234852]
[1726255317309,3.22242206,138.46,138.37,12.59746539]
[1726255317629,0.37647,138.45,138.37,12.59746539]
[1726255317828,0.37647,138.45,138.37,11.15234852]
[1726255318423,0.37647,138.45,138.37,6.0811]
[1726255319314,7.59937,138.45,138.37,6.0811]
[1726255320536,0.37647,138.45,138.37,6.0811]
[1726255320716,24.153354,138.45,138.35,5.07124852]
[1726255321025,24.153354,138.45,138.34,22.8516]
[1726255322031,0.25098,138.42,138.34,22.8516]
[1726255322325,0.12549,138.41,138.34,22.8516]
[1726255323239,0.12549,138.41,138.35,6.51539498]
[1726255323424,0.25098,138.44,138.36,1.44456076]
[1726255323628,0.12549,138.43,138.36,1.44456076]
[1726255323823,10.44482206,138.46,138.37,5.07124852]
[1726255324128,7.2228,138.45,138.37,5.07124852]
[1726255324305,7.2229,138.45,138.37,6.51572764]
[1726255324507,3.22242206,138.46,138.37,5.07124852]
[1726255324731,3.22242206,138.46,138.35,5.07124852]
[1726255325118,0.25098,138.44,138.35,5.07124852]
[1726255325429,0.25098,138.44,138.37,5.07124852]
[1726255325723,0.12549,138.43,138.37,5.07124852]
[1726255325931,0.25098,138.44,138.37,5.07124852]
[1726255326133,0.12549,138.44,138.37,5.07124852]
[1726255326340,0.12549,138.43,138.35,5.07124852]
[1726255326631,0.25098,138.43,138.35,5.07124852]
[1726255327032,0.12549,138.42,138.35,5.07124852]
[1726255327230,0.12549,138.41,138.34,22.8516]
[1726255329829,0.25098,138.44,138.36,5.07124852]
[1726255330036,0.12549,138.43,138.36,5.07124852]
[1726255332528,3.22242206,138.46,138.36,5.07124852]
[1726255332849,7.2231,138.45,138.36,5.07124852]
[1726255333417,3.22242206,138.46,138.37,34.63532454]
[1726255333621,3.22242206,138.46,138.37,36.07951757]
[1726255333921,0.25098,138.45,138.37,23.41659303]
[1726255334945,0.12549,138.44,138.37,21.9724]
[1726255336149,0.12549,138.44,138.37,23.41758651]
[1726255337644,0.12549,138.44,138.38,5.07124852]
[1726255337824,0.12549,138.44,138.39,1.44500014]
[1726255338147,0.2561221,138.46,138.4,6.51614425]
[1726255338343,0.12549,138.45,138.4,5.07124852]
[1726255339019,0.12549,138.45,138.41,21.5657]
[1726255342551,0.2561221,138.46,138.41,21.5657]
[1726255349857,0.2561221,138.46,138.42,5.07124852]
[1726255350246,0.2561221,138.46,138.41,21.5657]
[1726255351848,0.2561221,138.46,138.42,5.07124852]
[1726255352052,0.2561221,138.46,138.41,21.5657]
[1726255355673,0.37647,138.45,138.41,21.5657]
[1726255356363,0.25098,138.45,138.41,21.5657]
[1726255356657,0.12549,138.45,138.41,21.5657]
[1726255357654,0.25098,138.45,138.41,21.5657]
[1726255358962,0.25098,138.44,138.41,21.5657]
[1726255362352,0.25098,138.45,138.41,21.5657]
[1726255375762,0.12549,138.44,138.41,21.5657]
[1726255376078,0.25098,138.44,138.41,21.5657]
[1726255380558,0.12549,138.44,138.41,21.5657]
[1726255380766,0.37647,138.45,138.41,21.5657]
[1726255381478,0.2561221,138.46,138.41,26.63694852]
[1726255381659,0.2561221,138.46,138.41,21.5657]
[1726255382886,0.37647,138.45,138.41,21.5657]
[1726255387381,0.12549,138.45,138.41,21.5657]
[1726255387783,0.2561221,138.46,138.41,26.63694852]
[1726255397084,0.2561221,138.46,138.42,1.44369377]
[1726255397271,0.2561221,138.46,138.41,26.63694852]
[1726255398187,0.2561221,138.46,138.43,5.07124852]
[1726255398394,0.2561221,138.46,138.45,22.5774]
[1726255402782,0.3816121,138.46,138.45,16.5406]
[1726255402975,0.6325921,138.46,138.42,15.6828]
[1726255403876,0.12549,138.45,138.42,15.6828]
[1726255406875,0.37647,138.45,138.42,15.6828]
[1726255407477,0.37647,138.45,138.41,6.0205]
[1726255408097,0.37647,138.45,138.38,22.99592931]
[1726255408098,24.153354,138.45,138.38,22.99592931]
[1726255408471,31.376454,138.45,138.38,15.4646]
[1726255408790,24.027864,138.43,138.38,15.4646]
[1726255408994,0.12549,138.42,138.38,15.4646]
[1726255413804,0.25098,138.41,138.38,15.4646]
[1726255414001,0.12549,138.4,138.38,15.4646]
[1726255422512,0.25098,138.41,138.38,15.4646]
[1726255422717,0.25098,138.41,138.37,6.2205]
[1726255422894,0.12549,138.4,138.34,15.3761]
[1726255424402,0.25098,138.39,138.34,15.3761]
[1726255424586,0.12549,138.38,138.34,15.3761]
[1726255427819,0.25098,138.39,138.34,15.3761]
[1726255440396,0.12549,138.38,138.34,15.3761]
[1726255441523,0.12549,138.38,138.33,11.56254852]
[1726255445735,15.9595,138.41,138.33,11.56254852]
[1726255446027,23.1844,138.41,138.33,11.56254852]
[1726255446433,7.2254,138.4,138.33,11.56254852]
[1726255446726,23.1846,138.41,138.33,11.56254852]
[1726255446930,24.153354,138.4,138.33,11.56254852]
[1726255450533,31.378854,138.4,138.33,11.56254852]
[1726255450829,0.25098,138.38,138.33,6.4913]
[1726255451033,0.12549,138.37,138.33,6.4913]
[1726255452247,0.12549,138.37,138.33,11.56254852]
[1726255454832,2.9858757,138.41,138.33,11.56254852]
[1726255455210,14.75941765,138.42,138.33,11.56254852]
[1726255455413,7.53491765,138.42,138.33,11.56254852]
[1726255455734,3.0266283,138.42,138.37,5.07124852]
[1726255455937,7.224,138.43,138.36,16.6658]
[1726255456305,23.1231,138.44,138.36,16.6658]
[1726255457035,0.25098,138.43,138.36,16.6658]
[1726255457633,24.027864,138.43,138.36,16.6658]
[1726255457938,0.25098,138.41,138.36,16.6658]
[1726255458136,0.25098,138.39,138.36,16.6658]
[1726255458342,0.12549,138.38,138.33,11.56254852]
[1726255458513,0.12549,138.38,138.33,6.4913]
[1726255458858,0.25098,138.37,138.32,0.2561221]
[1726255459132,0.25098,138.35,138.32,0.2561221]
[1726255459338,0.12549,138.34,138.32,0.2561221]
[1726255459511,0.25098,138.33,138.32,0.2561221]
[1726255459710,0.37647,138.33,138.32,0.2561221]
[1726255465437,3.07725154,138.34,138.32,0.2561221]
[1726255465747,7.2265,138.38,138.32,0.2561221]
[1726255466636,23.776884,138.38,138.32,0.2561221]
[1726255466951,0.25098,138.38,138.33,15.3374]
[1726255468147,24.027864,138.38,138.33,15.3374]
[1726255468336,0.12549,138.37,138.33,15.3374]
[1726255471957,2.98773234,138.38,138.33,15.3374]
[1726255472453,7.2254,138.4,138.33,15.3374]
[1726255472948,7.226,138.39,138.33,15.3374]
[1726255473130,0.12549,138.37,138.33,15.3374]
[1726255473343,0.37647,138.37,138.33,15.3374]
[1726255500157,23.776884,138.36,138.33,15.3374]
[1726255500465,0.37647,138.35,138.33,15.3374]
[1726255508751,3.44866716,138.35,138.33,15.3374]
[1726255508952,0.37647,138.35,138.33,15.3374]
[1726255513270,3.42986103,138.35,138.33,15.3374]
[1726255513448,0.37647,138.35,138.33,15.3374]
[1726255513651,0.37647,138.35,138.32,0.2561221]
[1726255515051,7.60477,138.35,138.32,0.2561221]
[1726255517255,10.63422393,138.35,138.32,0.2561221]
[1726255518483,3.40592393,138.35,138.32,0.2561221]
[1726255525986,0.37647,138.35,138.32,0.2561221]
[1726255527358,23.776884,138.39,138.32,0.2561221]
[1726255527564,31.002884,138.39,138.32,0.2561221]
[1726255527785,7.2266,138.38,138.32,0.2561221]
[1726255528071,23.776884,138.39,138.32,0.2561221]
[1726255528771,0.37647,138.38,138.32,0.2561221]
[1726255529561,17.81794335,138.4,138.33,20.37984852]
[1726255529764,3.06442603,138.4,138.33,20.37984852]
[1726255529977,7.2254,138.4,138.33,20.37984852]
[1726255531167,23.902374,138.39,138.33,20.37984852]
[1726255531499,24.027864,138.39,138.33,20.37984852]
[1726255531679,0.12549,138.38,138.33,20.37984852]
[1726255537967,7.47808,138.37,138.33,15.3086]
[1726255538296,0.12549,138.36,138.33,15.3086]
[1726255542469,3.08472804,138.39,138.33,20.37984852]
[1726255542690,7.2259,138.39,138.33,20.37984852]
[1726255543404,2.9665144,138.4,138.33,20.37984852]
[1726255543577,2.9665144,138.4,138.34,6.3393]
[1726255543773,0.25098,138.39,138.34,6.3393]
[1726255543992,0.25098,138.4,138.34,6.3393]
[1726255544701,0.25098,138.39,138.34,6.3393]
[1726255544871,0.12549,138.38,138.35,5.07124852]
[1726255545486,10.23135285,138.41,138.35,5.07124852]
[1726255545687,7.2249,138.41,138.35,5.07124852]
[1726255545900,7.2255,138.4,138.34,6.3393]
[1726255546682,0.25098,138.39,138.34,6.3393]
[1726255547011,0.12549,138.38,138.34,6.3393]
[1726255548305,23.776884,138.41,138.34,6.3393]
[1726255548306,7.2249,138.41,138.35,20.29344852]
[1726255549807,0.37647,138.4,138.35,20.29344852]
[1726255552888,8.77858243,138.42,138.37,5.07124852]
[1726255553082,2.96085936,138.42,138.37,5.07124852]
[1726255553304,7.2243,138.43,138.37,5.07124852]